[Event "1st Semana Santa Torrevieja 2022"]
[Site "Torrevieja Alicante"]
[Date "2022.04.17"]
[Round "9.12"]
[White "Carbonell Sancho, Marc"]
[Black "Movsziszian, Karen"]
[Result "0-1"]
[ECO "E01"]
[WhiteElo "2215"]
[BlackElo "2441"]
[Annotator "TA"]
[PlyCount "84"]
[EventDate "2022.04.12"]
[EventType "swiss"]
[EventCountry "ESP"]
[SourceTitle "playchess.com"]
[Source "ChessBase"]
[SourceQuality "1"]
[TimeControl "5400+30"]

{[%evp 9,84,-25,-19,-24,-24,-16,0,-12,-4,-20,0,-28,-18,-28,-20,-24,-18,-14,-12,-28,-10,-18,0,0,0,0,0,0,0,7,12,-20,-13,-12,-14,-39,-39,-39,-53,-67,-77,-72,-68,-170,-177,-179,-172,-164,-169,-176,-163,-271,-271,-253,-260,-258,-247,-457,-432,-558,-586,-529,-529,-485,-462,-883,-838,-7350,-7291,-7223,-6267,-6179,-6125,-6090,-6083,-5202,-972]} 1. d4 {[%emt 0:00:03]} Nf6 {[%emt 0:00:08]} 2. c4 {[%emt 0:00:05]} e6 {[%emt 0:00:10]} 3. g3 {[%emt 0:00:22]} d5 {[%emt 0:00:15]} 4. cxd5 exd5 {[%emt 0:00:22]} 5. Bg5 {[%emt 0:02:10]} Be7 {[%emt 0:06:32]} 6. Nc3 {[%emt 0:03:07] E01: Catalan: Early deviations.} c6 {[%emt 0:02:22] [#]} 7. Qc2 $146 {[%emt 0:00:46]} ({Predecessor:} 7. Bg2 Bf5 8. Nf3 Nbd7 9. O-O h6 10. Bxf6 Nxf6 11. e3 O-O 12. h3 Qc8 13. Kh2 Ne4 {½-½ (60) Meyssirel,T (1333)-Kvashyna,T (1764) Europe Echecs INT 2020}) 7... Na6 {[%cal Of6e4,Bb8a6,Ba6c7,Bc7e6][%mdl 32]} 8. a3 {[%emt 0:01:35] The position is equal.} Nc7 {[%emt 0:09:33]} 9. e3 {[%emt 0:04:22]} O-O {[%emt 0:02:20]} 10. Bg2 {[%emt 0:03:58]} Ne6 {[%emt 0:08:35]} 11. Bxf6 {[%emt 0:00:53]} Bxf6 {[%emt 0:00:02]} 12. Nge2 {[%emt 0:00:13]} Re8 {[%emt 0:12:59]} 13. O-O {[%emt 0:00:14]} g6 {[%emt 0:01:16]} 14. b4 {[%emt 0:03:57]} a6 {[%emt 0:02:23]} 15. a4 {[%emt 0:01:04]} Nc7 {[%emt 0:01:16]} 16. b5 {[%emt 0:00:44]} Bf5 {[%emt 0:00:49]} 17. Qd2 {[%emt 0:07:20]} axb5 {[%emt 0:03:16]} 18. axb5 {[%emt 0:00:04]} Qd6 {[%emt 0:00:59]} 19. bxc6 {[%emt 0:02:05]} bxc6 {[%emt 0:00:06]} 20. Na4 {[%emt 0:03:39]} Ne6 {[%emt 0:05:41]} 21. Rfc1 {[%emt 0:04:13]} Reb8 {[%emt 0:04:59]} 22. Qc3 {[%emt 0:16:37]} Rb4 $36 {[%emt 0:05:34][%mdl 2048] Black has good play.} 23. Nc5 {[%emt 0:16:11]} Rxa1 {[%emt 0:01:18]} 24. Qxa1 {[%emt 0:00:51]} ({But not} 24. Rxa1 Qxc5 $3 {[%mdl 512]} 25. dxc5 Bxc3 26. Nxc3 Nxc5 $17) 24... Nxc5 {[%emt 0:01:19] Black converts the advantage convincingly.} 25. dxc5 {[%emt 0:00:03]} Qd8 {[%emt 0:05:08] &Nero is much more active.} ({Don't play} 25... Bxa1 26. cxd6 Bf6 27. Rxc6 $11) 26. Nd4 {[%emt 0:00:16]} (26. Qa3 $15 Qb8 27. Qa6) 26... Bxd4 $19 {[%emt 0:04:10]} 27. exd4 {[%emt 0:00:01] [#]} Qf6 $1 {[%emt 0:00:09]} 28. Rd1 {[%emt 0:08:00] [#]} Bc2 $1 {[%emt 0:00:47]} 29. Re1 {[%emt 0:00:01]} Kg7 {[%emt 0:04:16]} ({Inferior is} 29... Rxd4 30. Re8+ Kg7 31. Bf1 $17) (29... Qxd4 30. Qa8+ Kg7 31. Qxc6 $15) 30. Qc1 {[%emt 0:02:57]} (30. Rc1 {was worth a try.} Ba4 31. Bf1) 30... Rb1 {[%emt 0:02:35]} 31. Qd2 {[%emt 0:00:45]} Rxe1+ {[%emt 0:00:05]} 32. Qxe1 {[%emt 0:00:03]} Qxd4 {[%emt 0:00:05]} 33. h4 $2 {[%emt 0:00:49]} (33. Qe3 {might work better.} Qa1+ 34. Bf1) 33... Be4 {[%emt 0:02:55] aiming for ...Bxg2. Black is clearly winning.} 34. Qc1 {[%emt 0:03:43]} Bxg2 {[%emt 0:01:31]} 35. Kxg2 {[%emt 0:00:02][%mdl 4096] Endgame KQ-KQ} Qc4 {[%emt 0:01:10]} 36. Qa3 {[%emt 0:01:14]} d4 {[%emt 0:01:04][%cal Bd5d4,Bd4d3][%mdl 32] ...h5 is the strong threat.} 37. Qa5 {[%emt 0:01:49]} (37. Kf3 $142 h5 38. Qb2) 37... h5 {[%emt 0:02:35]} 38. Kg1 {[%emt 0:01:28]} d3 {[%emt 0:00:13] ( -> ...Qc1+)} 39. Qd8 {[%emt 0:00:37]} Qc1+ {[%emt 0:01:33]} 40. Kh2 {[%emt 0:02:13]} Qxc5 {[%emt 0:00:21]} 41. Qxd3 {[%emt 0:00:04]} Qxf2+ {[%emt 0:00:06]} 42. Kh1 {[%emt 0:00:04]} c5 {[%emt 0:00:13] Weighted Error Value: White=0.55/Black=0.12 (very precise)} (42... Kh7 $142 43. Qc3 c5) 0-1

[Event "1st Semana Santa Torrevieja 2022"]
[Site "Torrevieja Alicante"]
[Date "2022.04.17"]
[Round "9.13"]
[White "Cruz Lledo, Pablo"]
[Black "Davtyan, David Arm."]
[Result "0-1"]
[ECO "A39"]
[WhiteElo "2430"]
[BlackElo "2305"]
[Annotator "TA"]
[PlyCount "74"]
[EventDate "2022.04.12"]
[EventType "swiss"]
[EventCountry "ESP"]
[SourceTitle "playchess.com"]
[Source "ChessBase"]
[SourceQuality "1"]
[TimeControl "5400+30"]

{[%evp 16,74,35,34,49,8,6,14,43,15,26,16,19,0,0,-79,-77,-120,12,24,31,32,30,30,28,23,50,28,38,27,77,48,56,10,16,0,209,204,187,54,37,0,7,0,7,-66,11,0,8,15,62,-457,-450,-771,-769,-29977,-29978,-29978,-29978,-29990,-29991]} 1. d4 {[%emt 0:00:04]} Nf6 {[%emt 0:03:22]} 2. Nf3 {[%emt 0:00:05]} c5 {[%emt 0:00:56]} 3. g3 {[%emt 0:00:39]} g6 {[%emt 0:00:58]} 4. Bg2 {[%emt 0:02:00]} Bg7 {[%emt 0:00:06]} 5. O-O {[%emt 0:00:47]} cxd4 {[%emt 0:00:03]} 6. Nxd4 {[%emt 0:00:24]} O-O {[%emt 0:00:10]} 7. c4 {[%emt 0:09:36]} Nc6 {[%emt 0:01:38]} 8. Nc3 {[%emt 0:00:56]} Qa5 {[%emt 0:00:04]} 9. e3 {[%emt 0:01:35] outshines the older 9.Nb3.} Ne5 {[%emt 0:01:52][%cal Bc6e5,Be5d7,Bd7c5][%mdl 32] A39: Symmetrical English vs ...g6: 4 Bg2 Bg7 5 Nf3 Nf6 6 0-0 0-0 7 d4.} 10. Nd5 {[%emt 0:01:27]} Nxd5 {[%emt 0:02:38]} 11. cxd5 {[%emt 0:00:05]} d6 {[%emt 0:00:18] The position is equal.} 12. h3 {[%emt 0:05:58] [#]} Qb6 $146 {[%emt 0:02:59]} ({Predecessor:} 12... Bd7 13. Bd2 Qa6 14. Bc3 Rfc8 15. Re1 Ba4 16. Qd2 Nd3 17. Reb1 Nc5 18. Rc1 Bb5 19. Nxb5 Qxb5 20. Bxg7 Kxg7 {1-0 (38) Pilz,D (2243)-Bowmer,K (2067) Vienna 2015}) 13. a4 {[%emt 0:02:24]} a5 {[%emt 0:00:18]} 14. Qe2 {[%emt 0:12:20]} Nd7 {[%emt 0:00:58]} 15. Nb5 {[%emt 0:05:24]} (15. Rb1 $11) 15... Nc5 $1 $17 {[%emt 0:06:41]} 16. e4 {[%emt 0:00:09] [#]} Bd7 {[%emt 0:01:59]} ({Black should play} 16... Nxa4 $1 $17 {[%cal Oc8d7][%mdl 512] Hoping for ...Bd7!} 17. Be3 (17. Rxa4 $2 Bd7 $17) 17... Nc5) 17. Be3 $11 {[%emt 0:00:07]} Rfc8 {[%emt 0:02:55]} 18. Rac1 {[%emt 0:02:15]} Bxb5 {[%emt 0:02:16]} 19. axb5 {[%emt 0:00:02]} a4 {[%emt 0:05:29]} 20. Rfd1 {[%emt 0:00:14]} Rc7 {[%emt 0:06:55]} 21. Kh2 {[%emt 0:05:50]} Rac8 {[%emt 0:01:07]} 22. h4 {[%emt 0:00:08]} Qa7 {[%emt 0:06:20]} (22... Qa5 $11) 23. Bh3 {[%emt 0:02:10] Bxc5 is the strong threat.} Ra8 {[%emt 0:04:46]} 24. f4 {[%emt 0:00:33]} (24. Rc2 $14) 24... b6 $1 {[%emt 0:04:09]} 25. e5 {[%emt 0:00:31]} f5 $2 {[%emt 0:01:47]} (25... Qb8 $11) 26. exf6 $18 {[%emt 0:00:44]} Bxf6 {[%emt 0:01:26] [#]} 27. h5 {[%emt 0:01:08]} (27. f5 $1 $18 {[%cal Rf5g6]}) 27... a3 $14 {[%emt 0:01:30]} 28. bxa3 {[%emt 0:03:15]} Qxa3 {[%emt 0:00:55]} 29. hxg6 {[%emt 0:02:22]} hxg6 {[%emt 0:00:13]} 30. f5 {[%emt 0:01:06]} (30. Bg2 $11) 30... Qb2 {[%emt 0:00:55]} (30... g5 $15) 31. Rc2 {[%emt 0:08:00]} Qe5 {[%emt 0:01:21]} (31... Qb3 $5 {[%cal Rc5e4]} 32. Rdd2 (32. fxg6 Ne4 $17) 32... g5 $11) 32. fxg6 {[%emt 0:00:10]} Ra3 {[%emt 0:01:10]} (32... Rca7 $11) 33. Re1 $2 {[%emt 0:02:39][%mdl 8192] [#]} (33. Bf4 $14 {stays ahead.} Qxe2+ 34. Rxe2) 33... Nd3 $1 $19 {[%emt 0:07:39]} 34. Bh6 {[%emt 0:02:35]} ({Much worse is} 34. Rxc7 Nxe1 35. Be6+ (35. Qxe1 $2 Rxe3 36. Be6+ Kg7 $19) (35. Rc8+ $2 Kg7 $19) 35... Kg7 36. Bh6+ (36. Qxe1 $2 Rxe3 37. Qf2 Re2 $19) 36... Kxh6) (34. Be6+ $142 Kg7 35. Rxc7 Nxe1 36. Bh6+ (36. Qxe1 $2 Rxe3 37. Qf2 Re2 $19) 36... Kxh6 37. Qxe5 Bxe5 38. Kg1) 34... Rxc2 {[%emt 0:01:27][%mdl 64] Pin} ({And not} 34... Nxe1 35. Be6+ Kh8 36. g7+ Bxg7 37. Bxg7+ Kxg7 38. Qxe5+ dxe5 39. Rxc7 $11) 35. Be6+ {[%emt 0:03:59] [#]} Qxe6 $3 {[%emt 0:02:19][%mdl 512] Black mates.} 36. dxe6 {[%emt 0:00:42]} Nxe1 {[%emt 0:00:09] Active counter play!} 37. Bd2 {[%emt 0:00:28] [#]} Rxd2 $1 {[%emt 0:00:05] Black used his chance.  Weighted Error Value: White=0.75/Black=0.26 (precise)} 0-1

[Event "1st Semana Santa Torrevieja 2022"]
[Site "Torrevieja Alicante"]
[Date "2022.04.17"]
[Round "9.14"]
[White "Rudzinska, Michalina"]
[Black "Sabuk, Piotr"]
[Result "0-1"]
[ECO "A05"]
[WhiteElo "2211"]
[BlackElo "2411"]
[Annotator "TA"]
[PlyCount "88"]
[EventDate "2022.04.12"]
[EventType "swiss"]
[EventCountry "ESP"]
[SourceTitle "playchess.com"]
[Source "ChessBase"]
[SourceQuality "1"]
[TimeControl "5400+30"]

{[%evp 12,88,0,-8,0,14,5,0,13,10,39,-14,-6,-18,-23,-28,-38,-43,0,-19,-12,-57,-45,-52,-52,-71,-65,-93,-68,-87,-89,-107,-96,-113,-106,-113,-119,-255,-217,-275,-256,-278,-276,-290,-301,-250,-99,-112,-122,-114,-120,-108,-62,-247,-237,-209,-245,-227,-131,-413,0,0,0,0,0,-314,-312,-346,-344,-882,-882,-29979,-29979,-29978,-29959,-29983,-29984,-29981,-29963]} 1. Nf3 {[%emt 0:00:03]} d5 {[%emt 0:01:04]} 2. b3 {[%emt 0:00:09]} Nf6 {[%emt 0:04:30]} 3. Bb2 {[%emt 0:00:09]} g6 {[%emt 0:00:05]} 4. g3 {[%emt 0:00:59]} Bg7 {[%emt 0:00:39]} 5. Bg2 {[%emt 0:00:11]} c5 {[%emt 0:01:19]} 6. d3 {[%emt 0:02:10]} O-O {[%emt 0:00:51]} 7. O-O {[%emt 0:00:53]} Qc7 {[%emt 0:04:31] [#] A05: Réti Opening: 1 Nf3 Nf6.} 8. c4 $146 {[%emt 0:04:29]} ({Predecessor:} 8. Nbd2 Rd8 9. c4 d4 10. b4 e5 11. bxc5 Qxc5 12. Ng5 h6 13. Nge4 Nxe4 14. Nxe4 Qc7 15. c5 {0-1 (24) Ambrus,E (2407)-Popov,V (2593) St Petersburg 2002}) 8... d4 {[%emt 0:06:24]} 9. b4 {[%emt 0:01:03]} e5 {[%emt 0:07:28] The position is equal.} 10. bxc5 {[%emt 0:00:34]} Nbd7 {[%emt 0:01:17]} 11. Nbd2 {[%emt 0:08:35]} (11. e3 $1 $14) 11... Nxc5 {[%emt 0:02:26]} 12. Ba3 {[%emt 0:03:47]} Re8 {[%emt 0:03:26]} 13. Bxc5 {[%emt 0:03:24]} Qxc5 {[%emt 0:06:33]} 14. Rb1 {[%emt 0:00:12]} h6 {[%emt 0:07:24] Inhibits Ng5.} 15. Rb2 {[%emt 0:06:49]} Qc7 {[%emt 0:03:56]} 16. Qb1 {[%emt 0:00:37]} Rb8 {[%emt 0:00:30]} 17. Ne1 {[%emt 0:07:57]} Bg4 {[%emt 0:05:10]} 18. Nb3 {[%emt 0:04:27]} b6 {[%emt 0:04:01]} 19. h3 {[%emt 0:03:57]} Bf5 {[%emt 0:00:49]} 20. Nc2 {[%emt 0:01:49]} Rbd8 {[%emt 0:02:29]} 21. Rc1 {[%emt 0:04:53]} h5 {[%emt 0:02:12][%cal Bh6h5,Bh5h4][%mdl 32] And now ...h4! would win.} 22. Nb4 {[%emt 0:02:53]} Bh6 {[%emt 0:10:32]} 23. Rcc2 {[%emt 0:01:18]} e4 {[%emt 0:00:18][%cal Oh5h4]} 24. c5 {[%emt 0:04:12]} (24. Qf1 $17) 24... b5 {[%emt 0:24:36] aiming for ...a5.} 25. c6 {[%emt 0:05:18]} h4 $1 {[%emt 0:00:00]} 26. g4 {[%emt 0:14:51] [#]} Bxg4 $1 {[%emt 0:00:00][%cal Oe4e3][%mdl 512] Hoping for ...e3!} 27. dxe4 {[%emt 0:00:08] [#]} (27. Qf1 e3) 27... Nxe4 {[%emt 0:00:00]} 28. Nd3 {[%emt 0:10:42] [#]} (28. hxg4 $2 Nxf2 $1 {[%mdl 512]} 29. e4 (29. Kxf2 $2 Be3+ 30. Ke1 h3 $19) 29... Nxg4 $19) 28... Nc3 $2 {[%emt 0:00:00]} 29. Qf1 $17 {[%emt 0:00:34]} Bf5 {[%emt 0:00:00] ...Bf8 is the strong threat. &Nero is much more active. The white rooks are badly placed.} 30. Nxd4 {[%emt 0:02:15][%mdl 64] Remove Defender} Rxd4 {[%emt 0:00:00]} 31. Rxc3 {[%emt 0:00:07]} Rc4 {[%emt 0:00:00]} ({Black should play} 31... a6 $17 32. Rbc2 Red8) 32. Rxc4 $2 {[%emt 0:02:08]} (32. Rbc2 $1 $15) 32... bxc4 $19 {[%emt 0:00:00]} 33. Rb7 {[%emt 0:02:32]} Qd6 {[%emt 0:00:00]} 34. Nb4 {[%emt 0:01:10] [#]} c3 $1 {[%emt 0:00:00]} 35. e4 $2 {[%emt 0:01:51][%mdl 8192]} (35. e3 $17 {was called for.}) 35... Rxe4 $2 {[%emt 0:00:00]} ({Better is} 35... Be6 $19 36. Qb1 a5) 36. Bxe4 $11 {[%emt 0:00:38]} Bxe4 {[%emt 0:00:00][%cal Bf5e4,Be4c6,Bc6b5][%mdl 32]} 37. Rd7 $1 $40 {[%emt 0:00:43][%mdl 128] White has some attack.} Qc5 {[%emt 0:04:41] ( -> ...Qg5+)} 38. Qd1 $2 {[%emt 0:00:32][%mdl 8192]} Bxc6 $19 {[%emt 0:00:40] The board is on fire.} ({Inferior is} 38... Qxb4 39. c7 Bb7 40. Rd8+ Kh7 41. c8=Q Bxc8 42. Rxc8 $11) 39. Rd8+ {[%emt 0:00:20]} Kh7 {[%emt 0:00:14]} 40. Qd4 {[%emt 0:00:24]} ({Don't go for} 40. Nxc6 $2 c2 41. Qg4 c1=Q+ $19) (40. Rd4 a5 41. Nc2 (41. Nxc6 $2 c2 $19)) 40... Qg5+ {[%emt 0:00:28]} 41. Kf1 {[%emt 0:00:20] [#]} Bg7 $1 {[%emt 0:00:31] Black mates.} 42. Qg4 {[%emt 0:00:51]} Bb5+ {[%emt 0:00:40] This bishop pair is nice.} 43. Rd3 {[%emt 0:00:10]} Qxg4 {[%emt 0:00:25]} 44. hxg4 {[%emt 0:00:06]} c2 {[%emt 0:00:24] Weighted Error Value: White=0.67/Black=0.37} 0-1

[Event "1st Semana Santa Torrevieja 2022"]
[Site "Torrevieja Alicante"]
[Date "2022.04.17"]
[Round "9.15"]
[White "Fernandez Garcia, Gumersindo"]
[Black "Suarez Uriel, Adrian"]
[Result "0-1"]
[ECO "A50"]
[WhiteElo "2125"]
[BlackElo "2348"]
[Annotator "TA"]
[PlyCount "169"]
[EventDate "2022.04.12"]
[EventType "swiss"]
[EventCountry "ESP"]
[SourceTitle "playchess.com"]
[Source "ChessBase"]
[SourceQuality "1"]
[TimeControl "5400+30"]

{[%evp 15,169,9,4,6,9,-19,-11,-93,-45,-47,-41,-36,-32,-35,-12,-17,-16,-18,-10,-12,0,-53,-10,-26,-16,-20,-47,-73,-78,-88,-25,-87,-87,-92,-65,-79,-27,-85,-85,-85,-85,-114,-114,-114,-114,-114,-114,-114,-114,-114,-10,-114,-10,-25,-41,-53,-57,-58,-25,-82,0,0,0,-111,0,-111,-111,-111,-111,-111,-111,-111,-64,-111,-111,-111,-111,-111,-111,-111,-111,-111,0,-111,-65,-111,-65,-65,-65,-65,-65,-65,-40,-65,-65,-111,-22,-22,-22,-22,-22,-22,-22,-22,-22,-22,-22,-22,-22,-22,-22,-22,-22,-22,-22,-22,-22,-22,-22,-22,-22,-22,-22,-37,-37,-37,-22,-22,-22,-37,-22,-22,-22,-22,0,-5,0,-272,-272,-29970,-29971,-29971,-272,-272,0,-53,0,-29961,0,-29977,-29978,-29978,-29979,-29979,-29980,-29979]} 1. d4 {[%emt 0:00:03]} Nf6 {[%emt 0:02:04]} 2. c4 {[%emt 0:00:03]} b6 {[%emt 0:00:03]} 3. Nf3 {[%emt 0:02:20]} Bb7 {[%emt 0:00:48]} 4. g3 {[%emt 0:00:53]} g6 {[%emt 0:00:05]} 5. Bg2 {[%emt 0:00:29]} Bg7 {[%emt 0:00:04]} 6. O-O {[%emt 0:00:36]} O-O {[%emt 0:00:05]} 7. Nc3 {[%emt 0:08:24] 7.Re1 is the modern continuation.} Ne4 {[%emt 0:00:06]} 8. Nxe4 {[%emt 0:08:54]} Bxe4 {[%emt 0:00:03]} 9. Bf4 {[%emt 0:08:16] A50: Queen's Fianchetto Defence (1 d4 Nf6 2 c4 b6).} c5 {[%emt 0:02:51]} 10. Qd2 {[%emt 0:02:05]} cxd4 {[%emt 0:04:50] [#]} 11. Bxb8 $146 {[%emt 0:01:23]} (11. Nxd4 $11 Bxg2 12. Kxg2) ({Predecessor:} 11. Bh6 Bxh6 12. Qxh6 Bxf3 13. Bxf3 Nc6 14. Rad1 e5 15. Bd5 Qe7 16. h4 Rae8 17. a3 {0-1 (24) Einarsson,H (2272)-Stefansson,H (2498) Reykjavik 2019}) 11... Qxb8 {[%emt 0:04:40]} (11... Rxb8 $17 12. Nxd4 Bxg2 13. Kxg2 Rc8) 12. Nxd4 $15 {[%emt 0:00:41]} Bxg2 {[%emt 0:00:10]} 13. Kxg2 {[%emt 0:00:04]} Qb7+ {[%emt 0:03:41]} 14. Nf3 {[%emt 0:02:33]} Rfd8 {[%emt 0:06:25][%cal Bf8d8,Bd8d5,Bd5a5,Ba5a3][%mdl 32]} 15. Rac1 {[%emt 0:08:05]} d5 {[%emt 0:14:32]} (15... e5 {with more complications.} 16. Qd6 Bf8 17. Qf6 d6) 16. cxd5 {[%emt 0:02:55]} Rxd5 {[%emt 0:00:21]} 17. Qc2 {[%emt 0:01:25]} Rad8 {[%emt 0:00:01]} 18. Kg1 {[%emt 0:02:56]} ({White should try} 18. b3 $11) 18... Bf6 {[%emt 0:03:16]} (18... Rc5 $5 {[%cal Rc5c2]} 19. Qb3 Qa6 $15) 19. b4 {[%emt 0:11:17]} a5 {[%emt 0:03:59]} 20. bxa5 {[%emt 0:02:59]} Rxa5 {[%emt 0:00:05]} 21. Qb3 {[%emt 0:02:06]} Rda8 {[%emt 0:06:19]} 22. Rc2 {[%emt 0:04:51]} h5 {[%emt 0:03:37]} (22... Ra3 $17 23. Qb1 Kg7) 23. h4 {[%emt 0:00:54]} (23. Rb1 $11) 23... Ra3 $17 {[%emt 0:00:05]} 24. Qb1 {[%emt 0:00:44]} b5 {[%emt 0:03:12]} 25. Rfc1 {[%emt 0:09:32]} Qb8 {[%emt 0:07:50]} (25... Kg7 $17) 26. Rc8+ {[%emt 0:09:45]} (26. e3 $11) 26... Qxc8 {[%emt 0:00:06]} 27. Rxc8+ {[%emt 0:00:04]} Rxc8 {[%emt 0:00:04][%cal Ba8c8,Bc8c2,Bc2d2][%mdl 32]} 28. Qxb5 {[%emt 0:00:08]} Rxa2 {[%emt 0:00:04]} 29. Kg2 {[%emt 0:00:16]} Rcc2 {[%emt 0:00:40]} 30. Ng1 {[%emt 0:00:10]} Kg7 {[%emt 0:00:17]} 31. Qd3 {[%emt 0:01:40]} Rd2 {[%emt 0:00:09]} 32. Qb5 {[%emt 0:00:44]} Bd4 {[%emt 0:02:25]} ({Better is} 32... Rdb2 $17 33. Qc4 Be5) 33. Qc4 {[%emt 0:02:45]} (33. Qb4 $1 $11) 33... e5 {[%emt 0:01:23]} (33... Rac2 $17 34. Qd5 Bf6) 34. Kf1 {[%emt 0:02:06]} Rac2 {[%emt 0:02:39]} 35. Qb5 {[%emt 0:00:24]} Rb2 {[%emt 0:02:31]} 36. Qc4 {[%emt 0:00:01]} Rdc2 {[%emt 0:00:09]} 37. Qd3 {[%emt 0:00:25]} Rc3 {[%emt 0:00:24] &Nero is much more active.} (37... Ba7 $1 $17 38. Qe4 Bb8) 38. Qe4 $1 $11 {[%emt 0:01:02]} Rcc2 {[%emt 0:08:05]} 39. Qd5 {[%emt 0:00:50]} (39. Qd3 $11 {keeps the balance.}) 39... Rb1+ {[%emt 0:00:26]} 40. Kg2 {[%emt 0:00:33][%cal Oe2e3] [#]} Rxg1+ $1 {[%emt 0:00:05][%mdl 512]} 41. Kxg1 {[%emt 0:00:04]} Rxe2 $17 {[%emt 0:00:03][%mdl 4096] Endgame KQ-KRB} 42. Kh1 {[%emt 0:01:58]} Rxf2 {[%emt 0:00:08]} 43. Qe4 {[%emt 0:00:01]} Rd2 {[%emt 0:00:37]} (43... Ra2 $17 44. Qd3 Kf8) 44. Qf3 {[%emt 0:00:07]} (44. g4 $1 $15) 44... Rb2 {[%emt 0:00:55]} 45. Qd5 {[%emt 0:00:35]} Rb6 {[%emt 0:00:21]} 46. Kg2 {[%emt 0:00:11]} Rf6 {[%emt 0:00:18]} 47. Qe4 {[%emt 0:00:16]} Kh6 {[%emt 0:00:33]} 48. Qa8 {[%emt 0:00:18][%cal Ra8h8]} Kg7 {[%emt 0:00:21] Prevents Qh8+.} 49. Qe4 $1 {[%emt 0:00:01]} Re6 {[%emt 0:00:24]} (49... Rf5 $17 50. Kh3 Rf2) 50. Qd5 {[%emt 0:00:09]} (50. g4 $1 $15 {might be stronger.}) 50... Bb6 {[%emt 0:00:51]} (50... Rb6 $17 51. Kh2 Rb2+ 52. Kh3 Re2) 51. Qe4 $15 {[%emt 0:00:01]} Bd8 {[%emt 0:00:24]} 52. Qd5 {[%emt 0:00:13]} Be7 {[%emt 0:00:07]} 53. Qe4 {[%emt 0:00:23]} Bd6 {[%emt 0:00:42]} 54. Kf2 {[%emt 0:00:25]} Bc7 {[%emt 0:01:31]} 55. Kg2 {[%emt 0:00:06]} (55. Kf3 $15) 55... f5 {[%emt 0:01:26]} (55... Bb6 $17 56. Qc4 Rf6) 56. Qd5 $11 {[%emt 0:00:30]} Re7 {[%emt 0:00:44]} 57. Qc5 {[%emt 0:00:02]} Rf7 {[%emt 0:00:16]} 58. Qc3 {[%emt 0:00:16]} Kh7 {[%emt 0:01:13]} 59. Qc4 {[%emt 0:00:01]} Rg7 {[%emt 0:00:04]} 60. Qe6 {[%emt 0:00:33]} e4 {[%emt 0:00:05]} 61. Qe8 {[%emt 0:00:13]} Ba5 {[%emt 0:00:14]} 62. Qa8 {[%emt 0:00:42]} Bc3 {[%emt 0:00:05]} 63. Qc8 {[%emt 0:00:29]} Bb2 {[%emt 0:00:20]} 64. Qb8 {[%emt 0:00:25]} Bf6 {[%emt 0:00:09]} 65. Qf8 {[%emt 0:00:01]} Bd4 {[%emt 0:00:26]} 66. Qd8 {[%emt 0:00:02]} Be3 {[%emt 0:00:04]} 67. Kh3 {[%emt 0:01:28]} Bh6 {[%emt 0:00:04]} 68. Kg2 {[%emt 0:01:02]} Ra7 {[%emt 0:00:06]} 69. Qe8 {[%emt 0:00:15]} Bg7 {[%emt 0:00:07]} 70. Kf2 {[%emt 0:00:35]} Ra2+ {[%emt 0:00:11]} 71. Kf1 {[%emt 0:00:02]} Ra3 {[%emt 0:00:07]} 72. Kf2 {[%emt 0:00:40]} Ra5 {[%emt 0:03:21]} 73. Qd7 {[%emt 0:00:34]} Ra2+ {[%emt 0:00:22]} 74. Kf1 {[%emt 0:00:41]} e3 {[%emt 0:00:24][%cal Be4e3,Be3e2][%mdl 32]} 75. Qe7 {[%emt 0:00:20]} e2+ {[%emt 0:00:36]} 76. Ke1 $2 {[%emt 0:01:27][%mdl 8192]} (76. Kf2 $1 $11 {and White has nothing to worry.}) 76... Ra4 $19 {[%emt 0:00:05]} 77. Qd7 $2 {[%emt 0:01:13]} (77. Qc7 $19 Re4 78. Qa7) 77... Re4 {[%emt 0:00:04]} 78. Qc7 {[%emt 0:00:03]} Re3 $2 {[%emt 0:00:50]} (78... Kh6 79. Qc5 Re8 80. Qc1+ Kh7 81. Qc7 Kh8 82. Qc6 Re7 83. Qc5 Bf6 84. Qc1 f4 85. Qd2 Kg7 86. Kf2 e1=Q+ 87. Qxe1 fxg3+ 88. Kf1 Rxe1+ 89. Kxe1 Be7 90. Ke2 Bxh4 91. Kf1 Kh6 92. Kg2 Kg5 93. Kf3 Kf5 94. Kg2 Kg4 95. Kf1 Kf3 96. Ke1 g2+ 97. Kd1 g1=Q+ 98. Kc2 Bf6 99. Kb3 Qc5 100. Ka4 Qc4+ 101. Ka3 Qb5 102. Ka2 Qb2#) 79. Qa7 {[%emt 0:00:17]} Re6 $2 {[%emt 0:00:35]} (79... Rxg3 $19 {White must now prevent ...Rg4.} 80. Kxe2 Rg4) 80. Qd7 {[%emt 0:00:14]} (80. Qf7 $11 Re3 81. Qa7 Rxg3 82. Kf2) 80... Re4 $2 {[%emt 0:00:53][%mdl 8192]} (80... Re5 $15 81. Qa7 Re4) 81. Qc7 $1 {[%emt 0:00:01]} Kg8 $2 {[%emt 0:01:08]} (81... Kh6 {mates} 82. Qc1+ Kh7 83. Qc7) 82. Qc8+ $2 {[%emt 0:00:14][%mdl 8192] [#]} (82. Qc6 $11) 82... Bf8 $1 {[%emt 0:00:15] Black mates.} 83. Qb8 {[%emt 0:00:43]} Kg7 {[%emt 0:00:06]} 84. Qc7+ {[%emt 0:02:34]} Kh6 {[%emt 0:00:09]} 85. Qc1+ {[%emt 0:00:02] Weighted Error Value: White=0.19 (very precise) /Black=0.26 (precise)} 0-1